[Event "HUN-ch Rapid 2018"]
[Site "Ajka"]
[Date "2018.07.20"]
[Round "5"]
[White "Czebe, Attila"]
[Black "Papp, Petra"]
[Result "1-0"]
[ECO "A04"]
[WhiteElo "2488"]
[BlackElo "2287"]
[Annotator "ChessBase"]
[PlyCount "117"]
[EventDate "2018.07.20"]
[EventType "swiss"]
[EventCountry "HUN"]
[SourceTitle "playchess.com"]
[Source "ChessBase"]
[SourceQuality "1"]
[TimeControl "1200+5"]

1. Nf3 {[%emt 0:00:01]} c5 {[%emt 0:00:07]} 2. b3 {[%emt 0:00:03]} Nf6 {[%emt 0:00:17]} 3. Bb2 {[%emt 0:00:01]} g6 {[%emt 0:00:01]} 4. g3 {[%emt 0:00:12]} Bg7 {[%emt 0:00:04]} 5. Bg2 {[%emt 0:00:01]} O-O {[%emt 0:00:02]} 6. O-O {[%emt 0:00:03]} d5 {[%emt 0:00:26]} 7. Qc1 {[%emt 0:01:26]} Nc6 {[%emt 0:00:34]} 8. Ne5 {[%emt 0:00:02]} Qd6 {[%emt 0:00:52]} 9. Nxc6 {[%emt 0:00:08]} bxc6 {[%emt 0:00:08]} 10. Nc3 {[%emt 0:00:37]} e5 {[%emt 0:00:25]} 11. e4 {[%emt 0:00:16]} d4 {[%emt 0:00:40]} 12. Na4 {[%emt 0:00:08]} Be6 {[%emt 0:00:46]} 13. Ba3 {[%emt 0:00:07]} Nd7 {[%emt 0:00:16]} 14. c3 {[%emt 0:01:09]} d3 {[%emt 0:00:29]} 15. Qe1 {[%emt 0:01:01]} Bh6 {[%emt 0:00:21]} 16. Qd1 {[%emt 0:01:30]} f5 {[%emt 0:00:39]} 17. Qf3 {[%emt 0:00:14]} f4 {[%emt 0:00:54]} 18. g4 {[%emt 0:00:14]} Rfd8 {[%emt 0:00:19]} 19. Rfe1 {[%emt 0:01:02]} Bf8 {[%emt 0:00:20]} 20. h4 {[%emt 0:01:19]} Qc7 {[%emt 0:00:45]} 21. g5 {[%emt 0:00:31]} c4 {[%emt 0:01:20]} 22. Bxf8 {[%emt 0:00:04]} Nxf8 {[%emt 0:00:34]} 23. Nc5 {[%emt 0:00:02]} Qe7 {[%emt 0:01:46]} 24. Nxe6 {[%emt 0:00:03]} Qxe6 {[%emt 0:00:02]} 25. Bh3 {[%emt 0:00:06]} Qf7 {[%emt 0:00:05]} 26. Rab1 {[%emt 0:00:07]} Rab8 {[%emt 0:00:14]} 27. bxc4 {[%emt 0:00:34]} Qxc4 {[%emt 0:00:31]} 28. a3 {[%emt 0:05:21]} a5 {[%emt 0:01:19]} 29. Rxb8 {[%emt 0:01:02]} Rxb8 {[%emt 0:00:01]} 30. Bf1 {[%emt 0:00:02]} Rd8 {[%emt 0:00:48]} 31. Rb1 {[%emt 0:00:04]} Ne6 {[%emt 0:02:39]} 32. Rb6 {[%emt 0:00:01]} Nc5 {[%emt 0:02:12]} 33. Rxc6 {[%emt 0:00:11]} Qxe4 {[%emt 0:00:51]} 34. Bg2 {[%emt 0:00:45]} Qxf3 {[%emt 0:00:28]} 35. Bxf3 {[%emt 0:00:02]} Nb3 {[%emt 0:00:05]} 36. c4 {[%emt 0:00:08]} Nxd2 {[%emt 0:00:10]} 37. Bd5+ {[%emt 0:00:01]} Kf8 {[%emt 0:01:03]} 38. Rc7 {[%emt 0:04:10]} e4 {[%emt 0:00:12]} 39. Rf7+ {[%emt 0:00:10]} Ke8 {[%emt 0:00:01]} 40. Rxf4 {[%emt 0:00:01]} Nf3+ {[%emt 0:00:26]} 41. Kf1 {[%emt 0:00:00]} d2 {[%emt 0:00:06]} 42. Rxe4+ {[%emt 0:00:14]} Kd7 {[%emt 0:00:04]} 43. Ke2 Rf8 44. Re3 {[%emt 0:00:16]} Nd4+ {[%emt 0:00:11]} 45. Kxd2 {[%emt 0:00:02]} Rxf2+ {[%emt 0:00:02]} 46. Kc3 {[%emt 0:00:08]} Ne2+ {[%emt 0:00:02]} 47. Kb3 {[%emt 0:00:01]} Nf4 {[%emt 0:00:06]} 48. Rf3 {[%emt 0:00:07]} Rxf3+ {[%emt 0:00:11]} 49. Bxf3 {[%emt 0:00:01]} Nd3 {[%emt 0:00:04]} 50. Ka4 {[%emt 0:00:13]} Kd6 {[%emt 0:00:02]} 51. Kxa5 {[%emt 0:00:07]} Kc5 {[%emt 0:00:02]} 52. Bd5 {[%emt 0:00:01]} Ne5 {[%emt 0:00:12]} 53. a4 {[%emt 0:00:08]} Nd7 {[%emt 0:00:03]} 54. Ka6 {[%emt 0:00:01]} Ne5 {[%emt 0:00:07]} 55. a5 {[%emt 0:00:01]} Nd7 {[%emt 0:00:02]} 56. Kb7 {[%emt 0:00:01]} Kb4 {[%emt 0:00:05]} 57. a6 {[%emt 0:00:01]} Nc5+ {[%emt 0:00:08]} 58. Kb6 {[%emt 0:00:01]} Na4+ 59. Kc6 1-0

[Event "HUN-ch Rapid 2018"]
[Site "Ajka"]
[Date "2018.07.20"]
[Round "5"]
[White "Csiszar, Csaba"]
[Black "Hardicsay, Peter"]
[Result "0-1"]
[ECO "D02"]
[WhiteElo "2432"]
[BlackElo "2267"]
[Annotator "NA"]
[PlyCount "93"]
[EventDate "2018.07.20"]
[EventType "swiss"]
[EventCountry "HUN"]
[SourceTitle "playchess.com"]
[Source "ChessBase"]
[SourceQuality "1"]
[TimeControl "1200+5"]

1. d4 {[%emt 0:00:03]} Nf6 {[%emt 0:00:03]} 2. Nf3 {[%emt 0:00:01]} d5 {[%emt 0:00:15]} 3. Bf4 {[%emt 0:00:03]} c5 {[%emt 0:00:12]} 4. dxc5 {[%emt 0:00:01]} Qa5+ {[%emt 0:00:18]} 5. c3 {[%emt 0:00:02]} Qxc5 {[%emt 0:00:02]} 6. e3 {[%emt 0:00:02]} Nc6 {[%emt 0:00:12]} 7. Be2 {[%emt 0:00:09]} Bg4 {[%emt 0:00:25]} 8. b4 {[%emt 0:00:02]} Qb6 {[%emt 0:00:02]} 9. Nbd2 {[%emt 0:00:04]} e6 {[%emt 0:00:12]} 10. a3 {[%emt 0:00:02]} Be7 {[%emt 0:00:35]} 11. c4 {[%emt 0:00:02]} O-O {[%emt 0:00:10]} 12. c5 {[%emt 0:00:02]} Qd8 {[%emt 0:00:03]} 13. O-O {[%emt 0:00:04]} Nd7 {[%emt 0:00:35]} 14. h3 {[%emt 0:00:08]} Bf5 {[%emt 0:00:14]} 15. Nb3 {[%emt 0:01:22]} Bg6 {[%emt 0:00:44]} 16. Rc1 {[%emt 0:00:51]} a6 {[%emt 0:00:35]} 17. Bg3 {[%emt 0:00:14]} Nf6 {[%emt 0:00:40]} 18. Bh2 {[%emt 0:00:51]} Ne4 {[%emt 0:00:25]} 19. Nfd4 {[%emt 0:00:08]} Bf6 {[%emt 0:00:49]} 20. f3 {[%emt 0:00:04]} Bg5 {[%emt 0:01:43]} 21. fxe4 {[%emt 0:00:51]} Bxe3+ {[%emt 0:00:02]} 22. Kh1 {[%emt 0:00:00]} Nxd4 {[%emt 0:01:19]} 23. Nxd4 {[%emt 0:00:07]} Bxc1 {[%emt 0:01:20]} 24. Qxc1 {[%emt 0:00:01]} Bxe4 {[%emt 0:00:04]} 25. Bd6 {[%emt 0:01:03]} Re8 {[%emt 0:00:06]} 26. Qf4 {[%emt 0:00:49]} Qd7 {[%emt 0:02:06]} 27. Bh5 {[%emt 0:01:03]} Bg6 {[%emt 0:01:34]} 28. Bxg6 {[%emt 0:01:13]} hxg6 {[%emt 0:00:03]} 29. Qg3 {[%emt 0:00:16]} Rac8 {[%emt 0:02:23]} 30. Kh2 {[%emt 0:02:54]} a5 {[%emt 0:01:00]} 31. Rf2 {[%emt 0:06:03]} axb4 {[%emt 0:00:18]} 32. axb4 {[%emt 0:00:01]} Ra8 {[%emt 0:00:58]} 33. h4 {[%emt 0:01:37]} Ra4 {[%emt 0:00:26]} 34. Nf3 {[%emt 0:00:09]} f6 {[%emt 0:00:17]} 35. Qxg6 {[%emt 0:00:12]} Rxb4 {[%emt 0:00:37]} 36. g3 {[%emt 0:00:36]} Rc4 {[%emt 0:00:47]} 37. Nd2 {[%emt 0:00:05]} Rd4 {[%emt 0:00:08]} 38. Nb3 {[%emt 0:00:25]} Rb4 {[%emt 0:00:03]} 39. c6 {[%emt 0:00:05]} Qxd6 {[%emt 0:00:09]} 40. Qxe8+ {[%emt 0:00:01]} Kh7 {[%emt 0:00:08]} 41. Qh5+ {[%emt 0:00:11]} Kg8 {[%emt 0:00:01]} 42. Qe8+ {[%emt 0:01:06]} Kh7 {[%emt 0:00:02]} 43. Na5 {[%emt 0:00:00]} Rxh4+ {[%emt 0:00:12]} 44. Kg2 {[%emt 0:00:01]} Rb4 {[%emt 0:00:28]} 45. cxb7 {[%emt 0:00:28]} Qe5 {[%emt 0:00:11]} 46. b8=Q Rxb8 47. Qa4 0-1

[Event "HUN-ch Rapid 2018"]
[Site "Ajka"]
[Date "2018.07.20"]
[Round "5"]
[White "Bagi, Mate"]
[Black "Udvardi, Zalan"]
[Result "1-0"]
[ECO "B33"]
[WhiteElo "2394"]
[BlackElo "1795"]
[Annotator "NA"]
[PlyCount "113"]
[EventDate "2018.07.20"]
[EventType "swiss"]
[EventCountry "HUN"]
[SourceTitle "playchess.com"]
[Source "ChessBase"]
[SourceQuality "1"]
[TimeControl "1200+5"]

1. e4 {[%emt 0:00:12]} c5 {[%emt 0:00:00]} 2. Nf3 {[%emt 0:00:02]} Nc6 {[%emt 0:00:01]} 3. d4 {[%emt 0:00:05]} cxd4 {[%emt 0:00:01]} 4. Nxd4 {[%emt 0:00:01]} Nf6 {[%emt 0:00:01]} 5. Nc3 {[%emt 0:00:03]} e5 {[%emt 0:00:01]} 6. Ndb5 {[%emt 0:00:05]} d6 {[%emt 0:00:00]} 7. Bg5 {[%emt 0:00:09]} a6 {[%emt 0:00:01]} 8. Na3 b5 9. Nd5 {[%emt 0:00:03]} Be7 {[%emt 0:00:01]} 10. Bxf6 {[%emt 0:00:06]} Bxf6 {[%emt 0:00:01]} 11. c4 {[%emt 0:00:06]} b4 {[%emt 0:00:01]} 12. Nc2 {[%emt 0:00:02]} a5 {[%emt 0:00:00]} 13. g3 {[%emt 0:00:25]} Be6 {[%emt 0:00:03]} 14. Bg2 {[%emt 0:00:04]} O-O {[%emt 0:00:32]} 15. O-O {[%emt 0:00:06]} Bg5 {[%emt 0:00:06]} 16. Qd3 {[%emt 0:00:22]} Rc8 {[%emt 0:00:23]} 17. f4 {[%emt 0:01:14]} Bh6 {[%emt 0:01:36]} 18. Nde3 {[%emt 0:00:54]} Qb6 {[%emt 0:00:12]} 19. Kh1 {[%emt 0:01:06]} a4 {[%emt 0:02:18]} 20. b3 {[%emt 0:00:47]} exf4 {[%emt 0:00:26]} 21. gxf4 {[%emt 0:00:10]} g6 {[%emt 0:00:02]} 22. Rad1 {[%emt 0:01:54]} axb3 {[%emt 0:00:24]} 23. axb3 {[%emt 0:00:03]} Bg7 {[%emt 0:00:09]} 24. f5 {[%emt 0:01:16]} Bd7 {[%emt 0:01:49]} 25. Qxd6 {[%emt 0:02:19]} Rfd8 {[%emt 0:01:20]} 26. Nd5 {[%emt 0:00:31]} Qa7 {[%emt 0:00:27]} 27. Nf6+ {[%emt 0:01:07]} Kh8 {[%emt 0:00:52]} 28. Nxd7 {[%emt 0:00:32]} Rc7 {[%emt 0:00:17]} 29. Qc5 {[%emt 0:02:51]} Rcxd7 {[%emt 0:00:02]} 30. Qxa7 {[%emt 0:00:11]} Nxa7 {[%emt 0:00:03]} 31. Rxd7 {[%emt 0:00:06]} Rxd7 {[%emt 0:00:00]} 32. Nxb4 {[%emt 0:00:04]} Rb7 {[%emt 0:00:09]} 33. Nd5 {[%emt 0:00:26]} Rxb3 {[%emt 0:00:03]} 34. f6 {[%emt 0:00:12]} Bf8 {[%emt 0:00:00]} 35. Ra1 {[%emt 0:00:48]} Bc5 {[%emt 0:00:17]} 36. h4 {[%emt 0:00:47]} h5 {[%emt 0:00:28]} 37. e5 {[%emt 0:00:28]} Nc6 {[%emt 0:00:43]} 38. e6 {[%emt 0:00:18]} fxe6 {[%emt 0:00:14]} 39. Nf4 {[%emt 0:00:03]} Ne5 {[%emt 0:00:23]} 40. Nxe6 {[%emt 0:00:10]} Ba3 {[%emt 0:01:49]} 41. c5 {[%emt 0:00:44]} Rc3 {[%emt 0:01:08]} 42. Re1 {[%emt 0:00:20]} Nf7 {[%emt 0:00:27]} 43. c6 {[%emt 0:00:07]} Bd6 {[%emt 0:00:20]} 44. Ng5 {[%emt 0:00:35]} Nxg5 {[%emt 0:01:55]} 45. hxg5 {[%emt 0:00:02]} Kg8 {[%emt 0:00:06]} 46. Rd1 {[%emt 0:00:10]} Bc7 {[%emt 0:01:34]} 47. Be4 {[%emt 0:00:15]} Rh3+ {[%emt 0:00:10]} 48. Kg2 {[%emt 0:00:02]} Rg3+ {[%emt 0:00:02]} 49. Kf2 {[%emt 0:00:02]} Rxg5 {[%emt 0:00:01]} 50. Rd7 {[%emt 0:00:06]} Bb6+ {[%emt 0:00:28]} 51. Kf3 {[%emt 0:00:02]} Rc5 {[%emt 0:00:32]} 52. Bd5+ {[%emt 0:00:17]} Kh8 {[%emt 0:00:23]} 53. Ke4 {[%emt 0:00:10]} h4 {[%emt 0:00:18]} 54. Rb7 {[%emt 0:00:06]} Ba5 {[%emt 0:00:13]} 55. Rb8+ {[%emt 0:00:06]} Kh7 {[%emt 0:00:07]} 56. f7 {[%emt 0:00:03]} Bc7 {[%emt 0:00:43]} 57. Rh8+ {[%emt 0:00:10]} 1-0

[Event "HUN-ch Rapid 2018"]
[Site "Ajka"]
[Date "2018.07.20"]
[Round "5"]
[White "Galyas, Miklos"]
[Black "Ruck, Robert"]
[Result "0-1"]
[ECO "A48"]
[WhiteElo "2382"]
[BlackElo "2570"]
[Annotator "ChessBase"]
[PlyCount "90"]
[EventDate "2018.07.20"]
[EventType "swiss"]
[EventCountry "HUN"]
[SourceTitle "playchess.com"]
[Source "ChessBase"]
[SourceQuality "1"]
[TimeControl "1200+5"]

1. d4 {[%emt 0:00:01]} Nf6 {[%emt 0:00:01]} 2. Nf3 {[%emt 0:00:01]} g6 {[%emt 0:00:09]} 3. Bf4 {[%emt 0:00:07]} Bg7 {[%emt 0:00:01]} 4. e3 {[%emt 0:00:01]} O-O {[%emt 0:00:02]} 5. Be2 {[%emt 0:00:01]} c5 {[%emt 0:00:06]} 6. O-O {[%emt 0:00:25]} cxd4 {[%emt 0:00:40]} 7. exd4 {[%emt 0:00:02]} d6 {[%emt 0:00:02]} 8. Nbd2 {[%emt 0:01:07]} Nc6 {[%emt 0:00:06]} 9. c3 {[%emt 0:00:07]} Be6 {[%emt 0:00:13]} 10. Re1 {[%emt 0:01:38]} Qb6 {[%emt 0:01:58]} 11. Nc4 {[%emt 0:03:01]} Bxc4 {[%emt 0:01:41]} 12. Bxc4 {[%emt 0:00:01]} Qxb2 {[%emt 0:00:30]} 13. Bb3 {[%emt 0:03:20]} Qxc3 {[%emt 0:02:40]} 14. d5 {[%emt 0:00:43]} Na5 {[%emt 0:02:12]} 15. Rc1 {[%emt 0:01:21]} Qb4 {[%emt 0:00:03]} 16. Bd2 {[%emt 0:00:01]} Qb6 {[%emt 0:00:01]} 17. Bxa5 {[%emt 0:02:11]} Qxa5 {[%emt 0:00:02]} 18. Rxe7 {[%emt 0:00:01]} Qb6 {[%emt 0:04:08]} 19. Rcc7 {[%emt 0:01:09]} Ng4 {[%emt 0:02:04]} 20. Qe1 {[%emt 0:00:51]} Rab8 {[%emt 0:00:22]} 21. h3 {[%emt 0:00:58]} Ne5 {[%emt 0:00:01]} 22. Nxe5 {[%emt 0:01:19]} Bxe5 {[%emt 0:00:02]} 23. Qe3 {[%emt 0:00:27]} Qxe3 {[%emt 0:03:18]} 24. fxe3 {[%emt 0:00:01]} Bf6 {[%emt 0:00:58]} 25. Red7 {[%emt 0:00:05]} Bd8 {[%emt 0:00:03]} 26. Rxb7 {[%emt 0:00:18]} Rxb7 {[%emt 0:00:01]} 27. Rxb7 {[%emt 0:00:01]} Bb6 {[%emt 0:00:01]} 28. Re7 {[%emt 0:00:10]} Rc8 {[%emt 0:00:05]} 29. Kf2 {[%emt 0:00:23]} Rc3 {[%emt 0:00:11]} 30. Re8+ {[%emt 0:00:36]} Kg7 {[%emt 0:00:02]} 31. Kf3 {[%emt 0:00:15]} Kf6 {[%emt 0:00:10]} 32. g4 {[%emt 0:00:18]} Rc1 {[%emt 0:00:05]} 33. h4 {[%emt 0:00:29]} h6 {[%emt 0:00:05]} 34. Re4 {[%emt 0:00:25]} Rh1 {[%emt 0:00:18]} 35. Rf4+ {[%emt 0:00:08]} Kg7 {[%emt 0:00:06]} 36. g5 {[%emt 0:00:05]} hxg5 {[%emt 0:00:07]} 37. hxg5 {[%emt 0:00:01]} Rh3+ {[%emt 0:00:01]} 38. Kg4 {[%emt 0:00:09]} Rxe3 {[%emt 0:00:02]} 39. Ba4 {[%emt 0:00:17]} Re5 {[%emt 0:00:03]} 40. Rf6 {[%emt 0:00:30]} Rxg5+ {[%emt 0:00:12]} 41. Kxg5 {[%emt 0:00:02]} Bd8 {[%emt 0:00:02]} 42. Be8 {[%emt 0:00:02]} Bxf6+ {[%emt 0:00:02]} 43. Kf4 {[%emt 0:00:01]} Be5+ {[%emt 0:00:01]} 44. Kf3 {[%emt 0:00:05]} f5 {[%emt 0:00:01]} 45. Bd7 {[%emt 0:00:03]} Kf6 {[%emt 0:00:01]} 0-1

[Event "HUN-ch Rapid 2018"]
[Site "Ajka"]
[Date "2018.07.20"]
[Round "5"]
[White "Dankhazi, Andras"]
[Black "Czupor, Attila"]
[Result "1-0"]
[ECO "D43"]
[WhiteElo "2361"]
[BlackElo "2045"]
[Annotator "NA"]
[PlyCount "66"]
[EventDate "2018.07.20"]
[EventType "swiss"]
[EventCountry "HUN"]
[SourceTitle "playchess.com"]
[Source "ChessBase"]
[SourceQuality "1"]
[TimeControl "1200+5"]

1. d4 {[%emt 0:00:01]} d5 {[%emt 0:00:01]} 2. c4 {[%emt 0:00:01]} c6 {[%emt 0:00:02]} 3. Nf3 {[%emt 0:00:01]} Nf6 {[%emt 0:00:01]} 4. Nc3 {[%emt 0:00:01]} e6 {[%emt 0:00:04]} 5. g3 {[%emt 0:00:01]} Nbd7 {[%emt 0:02:11]} 6. Bg2 {[%emt 0:00:01]} g6 {[%emt 0:00:40]} 7. O-O {[%emt 0:00:34]} Bg7 {[%emt 0:00:03]} 8. Nd2 {[%emt 0:00:11]} O-O {[%emt 0:00:28]} 9. b3 {[%emt 0:00:29]} dxc4 {[%emt 0:03:07]} 10. Nxc4 {[%emt 0:00:21]} c5 {[%emt 0:00:25]} 11. Ba3 {[%emt 0:02:07]} Nd5 {[%emt 0:01:57]} 12. Nxd5 {[%emt 0:01:30]} exd5 {[%emt 0:00:03]} 13. Bxd5 {[%emt 0:00:23]} Bxd4 {[%emt 0:00:11]} 14. Rc1 {[%emt 0:00:37]} Rb8 {[%emt 0:02:29]} 15. e3 {[%emt 0:02:45]} Bg7 {[%emt 0:00:42]} 16. b4 {[%emt 0:02:28]} b6 {[%emt 0:02:37]} 17. bxc5 {[%emt 0:00:59]} Nxc5 {[%emt 0:00:05]} 18. Bxc5 {[%emt 0:00:05]} bxc5 {[%emt 0:00:02]} 19. Qf3 {[%emt 0:00:01]} Qc7 {[%emt 0:01:04]} 20. Rfd1 {[%emt 0:00:59]} Bb7 {[%emt 0:00:54]} 21. Bxb7 {[%emt 0:00:04]} Rxb7 {[%emt 0:00:04]} 22. Qd5 {[%emt 0:00:24]} Rb5 {[%emt 0:02:13]} 23. Nd6 {[%emt 0:03:20]} Ra5 {[%emt 0:00:41]} 24. Nb7 {[%emt 0:00:17]} Rb5 {[%emt 0:00:31]} 25. Rxc5 {[%emt 0:00:09]} Rxc5 {[%emt 0:00:12]} 26. Nxc5 {[%emt 0:00:00]} Rc8 {[%emt 0:00:12]} 27. Nb3 {[%emt 0:00:15]} Bf6 {[%emt 0:00:24]} 28. Rc1 {[%emt 0:00:10]} Qb8 {[%emt 0:00:06]} 29. Rxc8+ {[%emt 0:00:03]} Qxc8 {[%emt 0:00:01]} 30. Kg2 {[%emt 0:00:01]} Qc7 {[%emt 0:00:16]} 31. Nd2 {[%emt 0:00:13]} Kg7 {[%emt 0:00:18]} 32. Nc4 {[%emt 0:00:04]} Qe7 {[%emt 0:00:24]} 33. e4 {[%emt 0:00:26]} Bc3 1-0

[Event "HUN-ch Rapid 2018"]
[Site "Ajka"]
[Date "2018.07.20"]
[Round "5"]
[White "Papp, Gellert"]
[Black "Medvegy, Zoltan"]
[Result "0-1"]
[ECO "B12"]
[WhiteElo "2324"]
[BlackElo "2542"]
[Annotator "ChessBase"]
[PlyCount "62"]
[EventDate "2018.07.20"]
[EventType "swiss"]
[EventCountry "HUN"]
[SourceTitle "playchess.com"]
[Source "ChessBase"]
[SourceQuality "1"]
[TimeControl "1200+5"]

1. e4 {[%emt 0:01:10]} c6 {[%emt 0:00:13]} 2. d4 {[%emt 0:00:04]} d5 {[%emt 0:00:00]} 3. e5 {[%emt 0:00:01]} Bf5 {[%emt 0:00:03]} 4. Nf3 {[%emt 0:00:02]} e6 {[%emt 0:00:02]} 5. Be2 {[%emt 0:00:01]} Bb4+ {[%emt 0:00:06]} 6. c3 {[%emt 0:00:34]} Ba5 {[%emt 0:00:01]} 7. O-O {[%emt 0:00:15]} Nd7 {[%emt 0:00:02]} 8. Na3 {[%emt 0:01:04]} Bc7 {[%emt 0:00:50]} 9. Nc2 {[%emt 0:01:15]} f6 {[%emt 0:00:30]} 10. Ne3 {[%emt 0:01:47]} Bg6 {[%emt 0:02:26]} 11. exf6 {[%emt 0:02:15]} Ngxf6 {[%emt 0:00:08]} 12. Ng5 {[%emt 0:02:15]} Qe7 {[%emt 0:00:43]} 13. Bd3 {[%emt 0:00:12]} O-O-O {[%emt 0:01:08]} 14. Re1 {[%emt 0:00:09]} Bxd3 {[%emt 0:04:51]} 15. Qxd3 {[%emt 0:00:02]} g6 {[%emt 0:00:01]} 16. Nf1 {[%emt 0:01:19]} e5 {[%emt 0:00:40]} 17. dxe5 {[%emt 0:00:29]} Nxe5 {[%emt 0:00:23]} 18. Qh3+ {[%emt 0:00:08]} Qd7 {[%emt 0:00:22]} 19. Qe6 {[%emt 0:02:51]} Qxe6 {[%emt 0:01:02]} 20. Nxe6 {[%emt 0:00:03]} Rde8 {[%emt 0:00:01]} 21. Nd4 {[%emt 0:01:30]} c5 {[%emt 0:00:44]} 22. Nc2 {[%emt 0:00:03]} Nd3 {[%emt 0:00:24]} 23. Rd1 {[%emt 0:00:25]} c4 {[%emt 0:00:45]} 24. Rb1 {[%emt 0:00:10]} Ng4 {[%emt 0:00:57]} 25. Be3 {[%emt 0:00:13]} Rhf8 {[%emt 0:00:25]} 26. Rd2 {[%emt 0:00:10]} Nxe3 {[%emt 0:01:40]} 27. Nfxe3 {[%emt 0:00:28]} Bb6 {[%emt 0:00:42]} 28. b3 {[%emt 0:00:24]} Rxf2 {[%emt 0:01:37]} 29. Rxf2 {[%emt 0:00:03]} Rxe3 {[%emt 0:00:04]} 30. bxc4 {[%emt 0:02:21]} Re2 {[%emt 0:00:59]} 31. Rxb6 {[%emt 0:00:22]} Rxf2 {[%emt 0:00:06]} 0-1

[Event "HUN-ch Rapid 2018"]
[Site "Ajka"]
[Date "2018.07.20"]
[Round "5"]
[White "Volosin, Vladimir"]
[Black "Kiss, Pal"]
[Result "1/2-1/2"]
[ECO "A11"]
[WhiteElo "2250"]
[BlackElo "2356"]
[Annotator "NA"]
[PlyCount "84"]
[EventDate "2018.07.20"]
[EventType "swiss"]
[EventCountry "HUN"]
[SourceTitle "playchess.com"]
[Source "ChessBase"]
[SourceQuality "1"]
[TimeControl "1200+5"]

1. c4 {[%emt 0:00:01]} c6 {[%emt 0:00:04]} 2. Nc3 {[%emt 0:00:02]} d5 {[%emt 0:00:02]} 3. e3 {[%emt 0:00:03]} Nf6 {[%emt 0:00:02]} 4. Nf3 {[%emt 0:00:03]} Bg4 {[%emt 0:00:09]} 5. Qb3 {[%emt 0:00:18]} Qb6 {[%emt 0:00:09]} 6. Qxb6 {[%emt 0:00:26]} axb6 {[%emt 0:00:02]} 7. Ne5 {[%emt 0:00:35]} Be6 {[%emt 0:00:56]} 8. b3 {[%emt 0:01:01]} g6 {[%emt 0:00:31]} 9. Bb2 {[%emt 0:00:33]} Bg7 {[%emt 0:00:02]} 10. Be2 {[%emt 0:00:26]} O-O {[%emt 0:00:14]} 11. d4 {[%emt 0:00:45]} Nbd7 {[%emt 0:04:53]} 12. Nxd7 {[%emt 0:00:20]} Nxd7 {[%emt 0:00:41]} 13. cxd5 {[%emt 0:00:16]} Bxd5 {[%emt 0:00:51]} 14. Nxd5 {[%emt 0:00:28]} cxd5 {[%emt 0:00:02]} 15. Bb5 {[%emt 0:01:17]} Nf6 {[%emt 0:00:34]} 16. f3 {[%emt 0:00:15]} Rfc8 {[%emt 0:00:14]} 17. Kd2 {[%emt 0:00:09]} e6 {[%emt 0:00:02]} 18. a4 {[%emt 0:00:22]} Bf8 {[%emt 0:00:09]} 19. Rhc1 {[%emt 0:00:11]} Bd6 {[%emt 0:00:44]} 20. h3 {[%emt 0:00:35]} h5 {[%emt 0:00:00]} 21. g4 {[%emt 0:00:28]} hxg4 {[%emt 0:00:26]} 22. hxg4 {[%emt 0:00:03]} Kg7 {[%emt 0:03:03]} 23. Rxc8 {[%emt 0:00:42]} Rxc8 {[%emt 0:00:02]} 24. Rh1 {[%emt 0:00:13]} g5 {[%emt 0:00:55]} 25. Bc3 {[%emt 0:00:50]} Ra8 {[%emt 0:01:24]} 26. Bd3 {[%emt 0:00:57]} Re8 {[%emt 0:00:14]} 27. Bb5 {[%emt 0:00:28]} Ra8 {[%emt 0:01:05]} 28. Bd3 {[%emt 0:01:38]} Re8 {[%emt 0:00:04]} 29. Rh3 {[%emt 0:00:46]} Ra8 {[%emt 0:00:13]} 30. Rh1 {[%emt 0:01:12]} Re8 {[%emt 0:00:06]} 31. Be2 {[%emt 0:00:29]} Rc8 {[%emt 0:00:04]} 32. Kd3 {[%emt 0:00:20]} Rd8 {[%emt 0:00:09]} 33. Kd2 {[%emt 0:00:53]} Ra8 {[%emt 0:00:02]} 34. Bb5 {[%emt 0:00:04]} Rc8 {[%emt 0:00:03]} 35. a5 bxa5 36. Bxa5 Ra8 37. Bc3 Ra2+ 38. Kd3 Rf2 39. Rh3 Ng8 40. Ba5 Ne7 41. Bd8 f6 42. Bd7 e5 1/2-1/2

[Event "HUN-ch Rapid 2018"]
[Site "Ajka"]
[Date "2018.07.20"]
[Round "5"]
[White "Szakolczai, Peter"]
[Black "Jakab, Attila"]
[Result "0-1"]
[ECO "A13"]
[WhiteElo "2194"]
[BlackElo "2363"]
[Annotator "NA"]
[PlyCount "64"]
[EventDate "2018.07.20"]
[EventType "swiss"]
[EventCountry "HUN"]
[SourceTitle "playchess.com"]
[Source "ChessBase"]
[SourceQuality "1"]
[TimeControl "1200+5"]

1. c4 {[%emt 0:00:04]} e6 {[%emt 0:00:02]} 2. e4 {[%emt 0:00:30]} d5 {[%emt 0:00:22]} 3. exd5 {[%emt 0:00:02]} exd5 {[%emt 0:00:01]} 4. cxd5 {[%emt 0:00:03]} Nf6 {[%emt 0:00:02]} 5. Nc3 {[%emt 0:00:03]} Nxd5 {[%emt 0:00:38]} 6. Bc4 {[%emt 0:00:06]} Nxc3 {[%emt 0:00:10]} 7. bxc3 {[%emt 0:00:20]} Be7 {[%emt 0:00:09]} 8. Nf3 {[%emt 0:00:13]} O-O {[%emt 0:00:03]} 9. O-O {[%emt 0:00:10]} Nc6 {[%emt 0:00:12]} 10. d4 {[%emt 0:00:17]} Na5 {[%emt 0:00:11]} 11. Bd3 {[%emt 0:00:20]} Be6 {[%emt 0:00:10]} 12. Re1 {[%emt 0:01:00]} Re8 {[%emt 0:00:45]} 13. Ne5 {[%emt 0:02:08]} Bf6 {[%emt 0:00:39]} 14. Qh5 {[%emt 0:05:37]} g6 {[%emt 0:00:02]} 15. Nxg6 {[%emt 0:01:25]} hxg6 {[%emt 0:00:03]} 16. Qxa5 {[%emt 0:00:11]} b6 {[%emt 0:01:01]} 17. Qa3 {[%emt 0:01:22]} c5 {[%emt 0:00:54]} 18. Be3 {[%emt 0:00:32]} cxd4 {[%emt 0:00:06]} 19. cxd4 {[%emt 0:00:02]} Bxd4 {[%emt 0:00:06]} 20. Bb5 {[%emt 0:01:40]} Bxa1 {[%emt 0:00:42]} 21. Bxe8 {[%emt 0:00:12]} Bf6 {[%emt 0:00:34]} 22. Bc6 {[%emt 0:00:16]} Rc8 {[%emt 0:00:03]} 23. Bf3 {[%emt 0:00:08]} Qe7 {[%emt 0:01:29]} 24. Qxe7 {[%emt 0:00:56]} Bxe7 {[%emt 0:00:02]} 25. Bd4 {[%emt 0:00:03]} Bxa2 {[%emt 0:00:52]} 26. g3 {[%emt 0:00:16]} Be6 {[%emt 0:01:07]} 27. h4 {[%emt 0:00:32]} Bc5 {[%emt 0:00:03]} 28. Bf6 {[%emt 0:00:07]} Rc7 {[%emt 0:00:10]} 29. h5 {[%emt 0:00:11]} gxh5 {[%emt 0:00:05]} 30. Bxh5 {[%emt 0:00:02]} Rd7 {[%emt 0:00:06]} 31. Bf3 {[%emt 0:00:09]} Rd2 {[%emt 0:00:35]} 32. Rf1 {[%emt 0:00:18]} Bc4 {[%emt 0:00:39]} 0-1